fUSD/lending_fUSD_20250107
["ID","MTS","AMOUNT","RATE_DAILY","PERIOD"]
[347937192,1736225432935,-11458.95619943,0.00011171,2]
[347937194,1736225432944,-200.0,0.00011171,2]
[347937196,1736225432953,-6938.88894245,0.00011172,2]
[347937198,1736225432963,-54896.25326407,0.00011173,2]
[347937202,1736225432989,-5026.92085487,0.00011173,2]
[347937206,1736225433019,-450.653,0.00011173,2]
[347937213,1736225433078,-1189.367004,0.00011173,2]
[347937281,1736225438192,-312.38661248,0.00011173,2]
[347937282,1736225438203,-14367.74408622,0.00011173,2]
[347937283,1736225438213,-1431.47821228,0.00011173,2]
[347937284,1736225438223,-200.0,0.00011174,2]
[347937285,1736225438233,-14367.74408622,0.00011174,2]
[347937286,1736225438242,-3368.28831242,0.00011174,2]
[347937287,1736225438252,-61875.58073542,0.00011175,2]
[347937288,1736225438261,-946.838103,0.00011175,2]
[347937289,1736225438271,-2533.98746944,0.00011176,2]
[347937290,1736225438280,-1431.47821228,0.00011176,2]
[347937291,1736225438289,-200.0,0.00011177,2]
[347937292,1736225438299,-3368.28831242,0.00011178,2]
[347937293,1736225438308,-200.0,0.00011179,2]
[347937294,1736225438317,-28633.72671902,0.00011179,2]
[347937295,1736225438327,-1431.47821228,0.00011179,2]
[347937296,1736225438336,-28633.72671902,0.0001118,2]
[347937297,1736225438346,-3368.28831242,0.00011181,2]
[347937298,1736225438355,-946.838103,0.00011182,2]
[347937299,1736225438364,-1431.47821228,0.00011182,2]
[347937300,1736225438373,-200.0,0.00011184,2]
[347937301,1736225438383,-2533.98746944,0.00011184,2]
[347937302,1736225438392,-946.838103,0.00011185,2]
[347937303,1736225438401,-2533.98746944,0.00011185,2]
[347937304,1736225438411,-14748.15854072,0.00011187,2]
[347937305,1736225438441,-13885.5681783,0.00011187,2]
[347937306,1736225438450,-200.0,0.00011187,2]
[347937307,1736225438459,-2533.98746944,0.00011189,2]
[347937308,1736225438468,-28633.72671902,0.00011189,2]
[347937309,1736225438478,-200.0,0.0001119,2]
[347937310,1736225438487,-946.838103,0.0001119,2]
[347937311,1736225438496,-14367.74408622,0.00011191,2]
[347937312,1736225438505,-3368.28831242,0.00011191,2]
[347937313,1736225438515,-1305.10684543,0.00011192,2]
[347937314,1736225438526,-126.37136685,0.00011192,2]
[347937316,1736225438536,-10121.65897632,0.00011192,2]
[347937318,1736225438545,-22943.50542857,0.00011192,2]
[347937321,1736225438556,-6947.75123105,0.00011192,2]
[347937323,1736225438567,-10175.9680866,0.00011192,2]
[347937325,1736225438578,-451.15504761,0.00011192,2]
[347937330,1736225438615,-3574.0,0.00011192,2]
[347937332,1736225438626,-960.0,0.00011192,2]
[347937334,1736225438638,-3539.19414476,0.00011192,2]
[347937336,1736225438649,-13284.00679683,0.00011192,2]
[347937338,1736225438658,-5008.04786993,0.00011194,2]
[347937347,1736225440559,-1930.84107252,0.00011194,2]
[347937348,1736225440568,-9000.40291948,0.00011194,2]
[347937619,1736225443260,-1353.10518129,0.00011194,2]
[347937649,1736225446379,-500.0,0.00011194,2]
[347937650,1736225446391,-3514.23598545,0.00011194,2]
[347937651,1736225446401,-200.0,0.00011194,2]
[347937652,1736225446410,-8022.83328824,0.00011194,2]
[347937653,1736225446428,-2098.82568808,0.00011194,2]
[347937654,1736225446438,-1975.97431192,0.00011194,2]
[347937655,1736225446462,-1.5e-07,0.00011194,2]
[347937656,1736225543564,-50000.0,0.00012,10]
[347937657,1736225546310,-50000.0,0.00012,10]
[347937658,1736225548722,-50000.0,0.00012,10]
[347937659,1736225550802,-8098.43346658,0.00012,10]
[347937660,1736225550827,-1000.6967068,0.00012,14]
[347937662,1736225718054,-1000.0,0.00013698,30]
[347937663,1736225718077,-1000.0,0.00013698,30]
[347937664,1736225718100,-1000.0,0.00013698,30]
[347937665,1736225718122,-1000.0,0.00013698,30]
[347937666,1736225718147,-1000.0,0.00013698,30]
[347937667,1736225718169,-1000.0,0.00013698,30]
[347937668,1736225718190,-1000.0,0.00013698,30]
[347937669,1736225718212,-1000.0,0.00013698,30]
[347937670,1736225718234,-1000.0,0.00013698,30]
[347937671,1736225718256,-1000.0,0.00013698,30]
[347937672,1736225718287,-1004.09290355,0.000137,30]
[347937673,1736225808688,5445.8209752,0.00013,30]
[347937675,1736225934569,-177.87,7.721e-05,2]
[347937692,1736226631457,-1309.89,8.219e-05,2]
[347937693,1736226631466,-1000.0,9.445e-05,2]
[347937694,1736226631475,-229.51212491,9.628e-05,2]
[347937695,1736226631676,-20.48787509,9.628e-05,2]
[347937696,1736226631685,-167.19,9.638e-05,2]
[347937697,1736226631695,-310.06,9.654e-05,2]
[347937698,1736226631705,-1000.0,0.0001,2]
[347937699,1736226631714,-531.04,0.00010137,2]
[347937705,1736226631945,-300.0,0.00010227,2]
[347937707,1736226631955,-19297.22212091,0.00010228,2]
[347937714,1736226632014,-276.9999995,0.00010228,2]
[347937716,1736226632025,-4325.77787959,0.00010228,2]
[347937718,1736226632034,-974.27,0.0001023,2]
[347937719,1736226632043,-1.19882295,0.0001023,2]
[347937720,1736226632054,-248.80117705,0.0001023,2]
[347937721,1736226632063,-9087.24,0.0001023,2]
[347937722,1736226632072,-999.99,0.0001023,2]
[347937723,1736226632081,-974.27,0.00010233,2]
[347937724,1736226632090,-974.27,0.00010236,2]
[347937725,1736226632099,-150.99,0.00010236,2]
[347937726,1736226632108,-974.27,0.00010238,2]
[347937727,1736226632117,-974.27,0.00010241,2]
[347937728,1736226632126,-974.27,0.00010244,2]
[347937729,1736226632135,-974.27,0.00010246,2]
[347937730,1736226632144,-974.27,0.00010249,2]
[347937731,1736226632153,-974.27,0.00010252,2]
[347937732,1736226632163,-974.27,0.00010254,2]
[347937733,1736226632171,-974.27,0.00010257,2]
[347937734,1736226632180,-974.27,0.0001026,2]
[347937735,1736226632190,-974.27,0.00010262,2]
[347937736,1736226632199,-974.27,0.00010265,2]
[347937737,1736226632208,-974.27,0.00010268,2]
[347937738,1736226632217,-974.27,0.0001027,2]
[347937739,1736226632226,-974.27,0.00010273,2]
[347937740,1736226632235,-974.27,0.00010276,2]
[347937741,1736226632244,-974.27,0.00010278,2]
[347937742,1736226632253,-974.27,0.00010281,2]
[347937743,1736226632262,-1145.75316845,0.00010422,2]
[347937744,1736226632271,-1309.89,0.00010446,2]
[347937745,1736226632281,-3894.0,0.00010529,2]
[347937746,1736226632290,-150.0,0.00010529,2]
[347937747,1736226632300,-1000.0,0.00010626,2]
[347937748,1736226632309,-151.53,0.00010744,2]
[347937749,1736226632318,-310.06,0.00010861,2]
[347937750,1736226632327,-153.87816121,0.000109,2]
[347937751,1736226632336,-523.578,0.0001092,2]
[347937752,1736226632346,-1480.00639998,0.0001099,2]
[347937753,1736226632355,-576.23287925,0.00010998,2]
[347937754,1736226632364,-5794.87469756,0.00010998,2]
[347937755,1736226632373,-1058.46973036,0.00010998,2]
[347937756,1736226632383,-176.17405799,0.00010999,2]
[347937757,1736226632391,-358.57218891,0.00010999,2]
[347937758,1736226632401,-500.0,0.00010999,2]
[347937759,1736226632411,-864.13,0.00010999,2]
[347937760,1736226632425,-500.0,0.00010999,2]
[347937761,1736226632434,-500.0,0.00010999,2]
[347937762,1736226632443,-552.39,0.00010999,2]
[347937763,1736226632452,-500.0,0.00010999,2]
[347937764,1736226632462,-673.49,0.00010999,2]
[347937765,1736226632471,-500.0,0.00010999,2]
[347937766,1736226632480,-955.09,0.00010999,2]
[347937767,1736226632489,-500.0,0.00010999,2]
[347937768,1736226632499,-870.86,0.00010999,2]
[347937769,1736226632508,-500.0,0.00010999,2]
[347937770,1736226632517,-2852.93,0.00010999,2]
[347937771,1736226632526,-500.0,0.00010999,2]
[347937772,1736226632536,-500.0,0.00010999,2]
[347937773,1736226632546,-500.0,0.00010999,2]
[347937774,1736226632555,-500.0,0.00010999,2]
[347937775,1736226632565,-565.246872,0.00010999,2]
[347937776,1736226632574,-692.25,0.00010999,2]
[347937777,1736226632584,-610.07,0.00010999,2]
[347937778,1736226632593,-884.45,0.00010999,2]
[347937779,1736226632603,-389.310861,0.00010999,2]
[347937780,1736226632612,-500.0,0.00010999,2]
[347937781,1736226632621,-156.453334,0.00010999,2]
[347937782,1736226632632,-500.0,0.00010999,2]
[347937783,1736226632641,-1586.34,0.00010999,2]
[347937784,1736226632650,-500.0,0.00010999,2]
[347937785,1736226632660,-701.12,0.00010999,2]
[347937786,1736226632669,-500.0,0.00010999,2]
[347937787,1736226632679,-500.0,0.00010999,2]
[347937788,1736226632688,-1382.83,0.00010999,2]
[347937789,1736226632698,-500.0,0.00010999,2]
[347937790,1736226632707,-500.0,0.00010999,2]
[347937791,1736226632716,-514.84,0.00010999,2]
[347937792,1736226632726,-500.0,0.00010999,2]
[347937793,1736226632735,-500.0,0.00010999,2]
[347937794,1736226632745,-500.0,0.00010999,2]
[347937795,1736226632754,-932.28,0.00010999,2]
[347937796,1736226632763,-587.36,0.00010999,2]
[347937797,1736226632773,-500.0,0.00010999,2]
[347937798,1736226632782,-500.0,0.00010999,2]
[347937799,1736226632792,-1759.52,0.00010999,2]
[347937800,1736226632801,-500.0,0.00010999,2]
[347937801,1736226632811,-500.0,0.00010999,2]
[347937802,1736226632820,-500.0,0.00010999,2]
[347937803,1736226632830,-500.0,0.00010999,2]
[347937804,1736226632839,-500.0,0.00010999,2]
[347937805,1736226632849,-500.0,0.00010999,2]
[347937806,1736226632858,-500.0,0.00010999,2]
[347937807,1736226632868,-500.0,0.00010999,2]
[347937808,1736226632877,-500.0,0.00010999,2]
[347937809,1736226632887,-773.27,0.00010999,2]
[347937810,1736226632896,-500.0,0.00010999,2]
[347937811,1736226632905,-500.0,0.00010999,2]
[347937812,1736226632915,-500.0,0.00010999,2]
[347937813,1736226632925,-500.0,0.00010999,2]
[347937814,1736226632934,-500.0,0.00010999,2]
[347937815,1736226632944,-500.0,0.00010999,2]
[347937816,1736226632953,-500.0,0.00010999,2]
[347937817,1736226632963,-241025.83549666,0.00011,4]
[347937818,1736226632976,-2005.47083319,0.00011,4]
[347937819,1736226632995,-10320.41462004,0.00011,4]
[347937820,1736226637362,-500.0,0.00010999,2]
[347937821,1736226637372,-500.0,0.00010999,2]
[347937822,1736226637381,-161.4798076,0.00010999,2]
[347937823,1736226637392,-338.5201924,0.00010999,2]
[347937824,1736226637402,-500.0,0.00010999,2]
[347937825,1736226637411,-270765.90828658,0.00011,4]
[347937826,1736226637438,-39938.27404791,0.00011,4]
[347937827,1736226637479,-5291.66807754,0.00011,4]
[347937828,1736226637535,-2943.84242347,0.00011,4]
[347937829,1736226637547,-11034.73040788,0.00011,4]
[347937830,1736226637558,-11710.53549523,0.00011,4]
[347937831,1736226637647,-974.80061012,0.00011,4]
[347937832,1736226637659,-419.275395,0.00011,4]
[347937833,1736226637703,-312.77406688,0.00011,4]
[347937966,1736226639493,-500.0,0.00010999,2]
[347937967,1736226639503,-150.71662176,0.00011,4]
[347937968,1736226639514,-264.339999,0.00011,4]
[347937969,1736226639601,-305.0000025,0.00011,4]
[347937970,1736226639612,-4965.55,0.00011,4]
[347937971,1736226639679,-19811.69873716,0.00011,4]
[347937972,1736226639690,-3250.01874056,0.00011,4]
[347937973,1736226639752,-1531.37907841,0.00011,4]
[347937974,1736226639763,-771.96506017,0.00011,4]
[347937975,1736226639775,-1239.50863962,0.00011,4]
[347937976,1736226639786,-11336.83571536,0.00011,4]
[347937977,1736226639803,-332.0700039,0.00011,4]
[347937978,1736226639814,-395.472,0.00011,4]
[347937979,1736226639836,-24571.526139,0.00011,4]
[347937980,1736226639850,-4764.15905,0.00011,4]
[347937981,1736226639861,-2905.38,0.00011,4]
[347937982,1736226639872,-1983.63196406,0.00011,4]
[347937983,1736226639883,-693.07543073,0.00011,4]
[347937984,1736226639895,-5712.47937933,0.00011,4]
[347937988,1736226642518,-500.0,0.00010999,2]
[347937989,1736226642528,-500.0,0.00010999,2]
[347937990,1736226642537,-4787.8312312,0.00011,4]
[347937991,1736226642548,-2187.3,0.00011,4]
[347937992,1736226642559,-16083.3999978,0.00011,4]
[347937993,1736226642685,-537.35,0.00011,4]
[347937994,1736226642741,-528.76949747,0.00011,4]
[347937995,1736226642752,-846.0,0.00011,4]
[347937996,1736226642765,-495.58079881,0.00011,4]
[347937997,1736226642776,-1098.44735005,0.00011,4]
[347937998,1736226642798,-1450.31865778,0.00011,4]
[347937999,1736226642809,-744.79128,0.00011,4]
[347938000,1736226642820,-2613.24932791,0.00011,4]
[347938001,1736226642832,-1711.87058023,0.00011,4]
[347938005,1736226645376,-7369.89359598,0.00010218,2]
[347938006,1736226645388,-4859.18,0.00010218,2]
[347938007,1736226645438,-7178.54694628,0.00010218,2]
[347938008,1736226645494,-419.48451,0.00010218,2]
[347938009,1736226645506,-328.68581002,0.00010218,2]
[347938010,1736226645641,-345.27883011,0.00010218,2]
[347938011,1736226645654,-3398.93030761,0.00010218,2]
[347938012,1736226645665,-1501.17,0.00010999,2]
[347938013,1736226645675,-500.0,0.00010999,2]
[347938014,1736226645687,-500.0,0.00010999,2]
[347938015,1736226645697,-500.0,0.00010999,2]
[347938016,1736226645707,-1789.89969239,0.00011,4]
[347938017,1736226645719,-576.70999178,0.00011,4]
[347938018,1736226645731,-1104.89183922,0.00011,4]
[347938019,1736226645742,-8022.0,0.00011,4]
[347938020,1736226645759,-35157.00000075,0.00011,4]
[347938021,1736226645788,-393801.7656383,0.00011,4]
[347938022,1736226645799,-7858.73569701,0.00011,4]
[347938023,1736226645810,-3622.53010337,0.00011,4]
[347938024,1736226645903,-6951.22248372,0.00011,4]
[347938025,1736226645928,-9733.8571043,0.00011,4]
[347938026,1736226962289,52476.794,0.0002,120]
[347938028,1736227007813,200.8334378,0.0002,120]
[347938032,1736227482943,156.4,7.116e-05,2]
[347938033,1736227554975,9223.81187903,6.94e-05,2]
[347938035,1736227567119,11047.09556473,7e-05,2]
[347938091,1736227831707,-1218.04,8.219e-05,2]
[347938092,1736227831716,-260.48253354,8.473e-05,2]
[347938093,1736227831725,-471.6136549,8.473e-05,2]
[347938094,1736227831734,-3670.83907525,8.5e-05,2]
[347938095,1736227831764,-2939.52,8.5e-05,2]
[347938096,1736227831814,-454.92529219,8.5e-05,2]
[347938097,1736227831829,-2077.64964431,8.5e-05,2]
[347938098,1736227831877,-6039.24515316,8.5e-05,2]
[347938099,1736227831889,-19927.18779636,8.5e-05,2]
[347938106,1736227837156,-700.0,7.9e-05,2]
[347938107,1736227837728,-165.77243165,8.473e-05,2]
[347938108,1736227837738,-505.49933834,8.473e-05,2]
[347938109,1736227837747,-200.86062874,8.473e-05,2]
[347938110,1736227837757,-7735.14635427,8.5e-05,2]
[347938116,1736227839678,-106.00070474,8e-05,2]
[347938117,1736227839713,-530.69259837,8e-05,2]
[347938118,1736227839774,-863.30669689,8e-05,2]
[347938119,1736227839784,-185804.64670482,8.5e-05,2]
[347938122,1736227845752,-60250.10596605,8.5e-05,2]
[347938123,1736227846018,-3703.34014236,8.5e-05,2]
[347938124,1736227846030,-3404.9,8.5e-05,2]
[347938125,1736227846042,-273.440006,8.5e-05,2]
[347938128,1736227916462,-87998.0,8.083e-05,2]
[347938129,1736227953168,-1000.0,8.082e-05,2]
[347938130,1736227953191,-19397.0,8.083e-05,2]
[347938131,1736228122066,12587.95428657,0.0002,120]
[347938136,1736228642752,-300.0,7.999e-05,2]
[347938140,1736228702629,-300.0,7.999e-05,2]
[347938141,1736228703171,-150.0,7.999e-05,2]
[347938143,1736228762871,-300.0,7.999e-05,2]
[347938144,1736228793106,-421.41988048,8e-05,2]
[347938146,1736228841007,-1100.0,7.9e-05,2]
[347938147,1736228843269,-37034.03680042,8e-05,2]
[347938148,1736228843295,-2300.0,8e-05,2]
[347938149,1736228843322,-1000.0,8.082e-05,2]
[347938150,1736228843344,-416.63602,8.083e-05,2]
[347938151,1736228843369,-500.0,8.219e-05,2]
[347938152,1736228843393,-500.0,8.219e-05,2]
[347938153,1736228843417,-504.69373546,8.219e-05,2]
[347938154,1736228843441,-500.0,8.219e-05,2]
[347938155,1736228843463,-500.0,8.219e-05,2]
[347938156,1736228843485,-500.0,8.219e-05,2]
[347938157,1736228843507,-500.0,8.219e-05,2]
[347938158,1736228843531,-500.0,8.219e-05,2]
[347938159,1736228843556,-500.0,8.219e-05,2]
[347938160,1736228843580,-500.0,8.219e-05,2]
[347938161,1736228843603,-500.0,8.219e-05,2]
[347938162,1736228843627,-500.0,8.219e-05,2]
[347938163,1736228843650,-500.0,8.219e-05,2]
[347938164,1736228843674,-500.0,8.219e-05,2]
[347938165,1736228843697,-500.0,8.219e-05,2]
[347938166,1736228843720,-500.0,8.219e-05,2]
[347938167,1736228843743,-500.0,8.219e-05,2]
[347938168,1736228843767,-565.64,8.219e-05,2]
[347938169,1736228843794,-500.0,8.219e-05,2]
[347938170,1736228843817,-500.0,8.219e-05,2]
[347938171,1736228843840,-500.0,8.219e-05,2]
[347938172,1736228843863,-500.0,8.219e-05,2]
[347938173,1736228843888,-500.0,8.219e-05,2]
[347938174,1736228843911,-500.0,8.219e-05,2]
[347938175,1736228843933,-500.0,8.219e-05,2]
[347938176,1736228843958,-500.0,8.219e-05,2]
[347938177,1736228843982,-500.0,8.219e-05,2]
[347938178,1736228844004,-500.0,8.219e-05,2]
[347938179,1736228844027,-500.0,8.219e-05,2]
[347938180,1736228844050,-500.0,8.219e-05,2]
[347938181,1736228844073,-500.0,8.219e-05,2]
[347938182,1736228844096,-500.0,8.219e-05,2]
[347938183,1736228844118,-500.0,8.219e-05,2]
[347938184,1736228844140,-500.0,8.219e-05,2]
[347938185,1736228844162,-500.0,8.219e-05,2]
[347938186,1736228844184,-500.0,8.219e-05,2]
[347938187,1736228844207,-500.0,8.219e-05,2]
[347938188,1736228844229,-500.0,8.219e-05,2]
[347938189,1736228844252,-500.0,8.219e-05,2]
[347938190,1736228844275,-500.0,8.219e-05,2]
[347938191,1736228844299,-150.2899593,8.219e-05,2]
[347938192,1736228844323,-500.0,8.219e-05,2]
[347938193,1736228844346,-500.0,8.219e-05,2]
[347938194,1736228844369,-500.0,8.219e-05,2]
[347938195,1736228844392,-500.0,8.219e-05,2]
[347938196,1736228844414,-500.0,8.219e-05,2]
[347938197,1736228844435,-500.0,8.219e-05,2]
[347938198,1736228844457,-500.0,8.219e-05,2]
[347938199,1736228844479,-500.0,8.219e-05,2]
[347938200,1736228844501,-500.0,8.219e-05,2]
[347938201,1736228844525,-500.0,8.219e-05,2]
[347938202,1736228844549,-500.0,8.219e-05,2]
[347938203,1736228844572,-500.0,8.219e-05,2]
[347938204,1736228844595,-500.0,8.219e-05,2]
[347938205,1736228844617,-500.0,8.219e-05,2]
[347938206,1736228844639,-500.0,8.219e-05,2]
[347938207,1736228844661,-504.25814367,8.219e-05,2]
[347938208,1736228844683,-500.0,8.219e-05,2]
[347938209,1736228844705,-500.0,8.219e-05,2]
[347938210,1736228844727,-500.0,8.219e-05,2]
[347938211,1736228844749,-500.0,8.219e-05,2]
[347938212,1736228844771,-500.0,8.219e-05,2]
[347938213,1736228844793,-500.0,8.219e-05,2]
[347938214,1736228844816,-500.0,8.219e-05,2]
[347938215,1736228844838,-500.0,8.219e-05,2]
[347938216,1736228844861,-500.0,8.219e-05,2]
[347938217,1736228844884,-500.0,8.219e-05,2]
[347938218,1736228844906,-500.0,8.219e-05,2]
[347938219,1736228844928,-500.0,8.219e-05,2]
[347938220,1736228844950,-500.0,8.219e-05,2]
[347938221,1736228844972,-500.0,8.219e-05,2]
[347938222,1736228844995,-500.60264665,8.219e-05,2]
[347938223,1736228845018,-500.0,8.219e-05,2]
[347938224,1736228845041,-500.0,8.219e-05,2]
[347938225,1736228845063,-500.0,8.219e-05,2]
[347938226,1736228845087,-500.0,8.219e-05,2]
[347938227,1736228845112,-500.0,8.219e-05,2]
[347938228,1736228845134,-500.0,8.219e-05,2]
[347938229,1736228845156,-500.0,8.219e-05,2]
[347938230,1736228845181,-500.0,8.219e-05,2]
[347938231,1736228845203,-500.0,8.219e-05,2]
[347938232,1736228845412,-500.0,8.219e-05,2]
[347938233,1736228845438,-500.0,8.219e-05,2]
[347938234,1736228845461,-500.0,8.219e-05,2]
[347938235,1736228845486,-860.57,8.219e-05,2]
[347938236,1736228845508,-500.0,8.219e-05,2]
[347938237,1736228845533,-500.0,8.219e-05,2]
[347938238,1736228845556,-500.0,8.219e-05,2]
[347938239,1736228845578,-500.0,8.219e-05,2]
[347938240,1736228845601,-197.64,8.219e-05,2]
[347938241,1736228845624,-500.0,8.219e-05,2]
[347938242,1736228845646,-500.0,8.219e-05,2]
[347938243,1736228845669,-500.0,8.219e-05,2]
[347938244,1736228845692,-500.0,8.219e-05,2]
[347938245,1736228845715,-500.0,8.219e-05,2]
[347938246,1736228845738,-500.0,8.219e-05,2]
[347938247,1736228845760,-500.0,8.219e-05,2]
[347938248,1736228845784,-500.0,8.219e-05,2]
[347938249,1736228845807,-500.0,8.219e-05,2]
[347938250,1736228845829,-500.0,8.219e-05,2]
[347938251,1736228845852,-500.0,8.219e-05,2]
[347938252,1736228845875,-500.0,8.219e-05,2]
[347938253,1736228845898,-500.0,8.219e-05,2]
[347938254,1736228845920,-500.0,8.219e-05,2]
[347938255,1736228845943,-500.0,8.219e-05,2]
[347938256,1736228845966,-500.0,8.219e-05,2]
[347938257,1736228845989,-500.0,8.219e-05,2]
[347938258,1736228846012,-500.0,8.219e-05,2]
[347938259,1736228846035,-1194.33,8.219e-05,2]
[347938260,1736228846060,-151.80335607,8.473e-05,2]
[347938261,1736228846083,-151.80335574,8.473e-05,2]
[347938262,1736228846107,-152.8020622,8.473e-05,2]
[347938263,1736228846130,-199.64138559,8.473e-05,2]
[347938264,1736228846152,-151.80335457,8.473e-05,2]
[347938265,1736228846176,-150.79905272,8.473e-05,2]
[347938266,1736228846198,-151.80335489,8.473e-05,2]
[347938267,1736228846220,-325.25883184,8.473e-05,2]
[347938268,1736228846243,-159.79300498,8.473e-05,2]
[347938269,1736228846266,-151.80335575,8.473e-05,2]
[347938270,1736228846291,-503.46474871,8.473e-05,2]
[347938271,1736228846320,-500.0,8.493e-05,2]
[347938272,1736228846344,-500.0,8.493e-05,2]
[347938273,1736228846369,-500.0,8.493e-05,2]
[347938274,1736228846394,-500.0,8.493e-05,2]
[347938275,1736228846418,-500.0,8.493e-05,2]
[347938276,1736228846442,-504.39461421,8.493e-05,2]
[347938277,1736228846466,-502.70990708,8.493e-05,2]
[347938278,1736228846489,-274.26516956,8.493e-05,2]
[347938279,1736228846514,-500.0,8.493e-05,2]
[347938280,1736228846542,-531.81238506,8.493e-05,2]
[347938281,1736228846567,-500.66757515,8.493e-05,2]
[347938282,1736228846590,-500.0,8.493e-05,2]
[347938283,1736228846615,-500.0,8.493e-05,2]
[347938284,1736228846638,-505.96249057,8.493e-05,2]
[347938285,1736228846661,-500.0,8.493e-05,2]
[347938286,1736228846686,-500.0,8.493e-05,2]
[347938287,1736228846709,-500.0,8.493e-05,2]
[347938288,1736228846731,-500.0,8.493e-05,2]
[347938289,1736228846753,-500.0,8.493e-05,2]
[347938290,1736228846776,-500.0,8.493e-05,2]
[347938291,1736228846800,-500.0,8.493e-05,2]
[347938292,1736228846824,-500.0,8.493e-05,2]
[347938293,1736228846846,-500.0,8.493e-05,2]
[347938294,1736228846870,-502.03115034,8.493e-05,2]
[347938295,1736228846893,-500.0,8.493e-05,2]
[347938296,1736228846915,-502.8008447,8.493e-05,2]
[347938297,1736228846937,-500.0,8.493e-05,2]
[347938298,1736228846959,-500.0,8.493e-05,2]
[347938299,1736228846982,-500.0,8.493e-05,2]
[347938300,1736228847004,-500.0,8.493e-05,2]
[347938301,1736228847026,-500.0,8.493e-05,2]
[347938302,1736228847050,-500.0,8.493e-05,2]
[347938303,1736228847072,-500.0,8.493e-05,2]
[347938304,1736228847094,-500.0,8.493e-05,2]
[347938305,1736228847118,-500.0,8.493e-05,2]
[347938306,1736228847141,-500.0,8.493e-05,2]
[347938307,1736228847164,-500.0,8.493e-05,2]
[347938308,1736228847186,-500.0,8.493e-05,2]
[347938309,1736228847208,-576.02344453,8.493e-05,2]
[347938310,1736228847231,-500.0,8.493e-05,2]
[347938311,1736228847253,-500.0,8.493e-05,2]
[347938312,1736228847276,-500.0,8.493e-05,2]
[347938313,1736228847300,-500.0,8.493e-05,2]
[347938314,1736228847325,-500.0,8.493e-05,2]
[347938315,1736228847347,-502.53338619,8.493e-05,2]
[347938316,1736228847373,-500.0,8.493e-05,2]
[347938317,1736228847398,-500.0,8.493e-05,2]
[347938318,1736228847420,-500.0,8.493e-05,2]
[347938319,1736228847444,-500.0,8.493e-05,2]
[347938320,1736228847467,-500.0,8.493e-05,2]
[347938321,1736228847490,-500.0,8.493e-05,2]
[347938322,1736228847512,-500.0,8.493e-05,2]
[347938323,1736228847536,-500.0,8.493e-05,2]
[347938324,1736228847559,-500.0,8.493e-05,2]
[347938325,1736228847581,-500.0,8.493e-05,2]
[347938326,1736228847603,-500.0,8.493e-05,2]
[347938327,1736228847625,-500.0,8.493e-05,2]
[347938328,1736228847647,-500.0,8.493e-05,2]
[347938329,1736228847670,-500.0,8.493e-05,2]
[347938330,1736228847692,-500.0,8.493e-05,2]
[347938331,1736228847715,-500.0,8.493e-05,2]
[347938332,1736228847738,-500.0,8.493e-05,2]
[347938333,1736228847761,-500.0,8.493e-05,2]
[347938334,1736228847784,-500.0,8.493e-05,2]
[347938335,1736228847806,-553.2,8.493e-05,2]
[347938336,1736228847828,-500.0,8.493e-05,2]
[347938337,1736228847851,-156.76,8.493e-05,2]
[347938338,1736228847873,-500.0,8.493e-05,2]
[347938339,1736228847896,-500.0,8.493e-05,2]
[347938340,1736228847918,-500.0,8.493e-05,2]
[347938341,1736228847940,-500.0,8.493e-05,2]
[347938342,1736228847962,-500.0,8.493e-05,2]
[347938343,1736228847985,-500.0,8.493e-05,2]
[347938344,1736228848009,-500.0,8.493e-05,2]
[347938345,1736228848034,-500.0,8.493e-05,2]
[347938346,1736228848056,-500.0,8.493e-05,2]
[347938347,1736228848080,-500.0,8.493e-05,2]
[347938348,1736228848102,-500.0,8.493e-05,2]